{"text_format":"1","workbook":"xlsx","n_sheets":3,"sheets":["Noliktavas krājumu saraksts","Krājumu izdošanas saraksts","Tvertnes meklēšana"],"not_rendered":{"charts":0,"images":0,"macros":1,"external_links":0,"defined_names":8,"comments":0,"pivot_tables":0},"unopened":[],"bounds":{"document_bytes":16777216,"sheet_cells":100000,"rows_first":2000,"rows_last":500,"rows_between":2000,"halvings":0,"cell_chars":16384,"cell_head_chars":4096},"cells_cut":0,"cells_raw":0,"read":"whole","date_system":"1900"}

{"sheet":"Noliktavas krājumu saraksts","index":0,"n_rows":15,"n_cols":11,"rows_kept":15,"cut":false,"hidden":false,"merged":[]}
[null,"NOLIKTAVAS KRĀJUMU SARAKSTS"]
[null,"KRĀJUMU KOPĒJĀ VĒRTĪBA:","KRĀJUMU VIENUMI:","TVERTŅU SKAITS:","KRĀJUMU IZDOŠANAS SARAKSTS","TVERTNES MEKLĒŠANA"]
[null,{"$f":"SUM(Krājumu_saraksts[KRĀJUMU VĒRTĪBA])","v":4649},{"$f":"COUNTA(Krājumu_saraksts[APRAKSTS])","v":11},{"$f":"SUMPRODUCT((1/COUNTIF(Krājumu_saraksts[TVERTNES NR.],Krājumu_saraksts[TVERTNES NR.]&\"\")))","v":6}]
[null,"NV","APRAKSTS","TVERTNES NR.","ATRAŠANĀS VIETA","VIENĪBA","DAUDZ.","PASŪTĪJUMA DAUDZ.","CENA","KRĀJUMU VĒRTĪBA","PASŪTĪŠANA"]
[null,"SP7875","1. prece","T345",{"$f":"IFERROR(VLOOKUP(Krājumu_saraksts[[#This Row],[TVERTNES NR.]],Tvertņu_meklēšana[],3,FALSE),\"\")","v":"2. rinda, 1. nodalījums"},"Gab.",20,10,30,{"$f":"Krājumu_saraksts[[#This Row],[DAUDZ.]]*Krājumu_saraksts[[#This Row],[CENA]]","v":600},{"$f":"IFERROR(IF(Krājumu_saraksts[[#This Row],[DAUDZ.]]<=Krājumu_saraksts[[#This Row],[PASŪTĪJUMA DAUDZ.]],1,0),0)","v":0}]
[null,"TR87680","2. prece","T345",{"$f":"IFERROR(VLOOKUP(Krājumu_saraksts[[#This Row],[TVERTNES NR.]],Tvertņu_meklēšana[],3,FALSE),\"\")","v":"2. rinda, 1. nodalījums"},"Gab.",30,15,40,{"$f":"Krājumu_saraksts[[#This Row],[DAUDZ.]]*Krājumu_saraksts[[#This Row],[CENA]]","v":1200},{"$f":"IFERROR(IF(Krājumu_saraksts[[#This Row],[DAUDZ.]]<=Krājumu_saraksts[[#This Row],[PASŪTĪJUMA DAUDZ.]],1,0),0)","v":0}]
[null,"MK676554","3. prece","T5789",{"$f":"IFERROR(VLOOKUP(Krājumu_saraksts[[#This Row],[TVERTNES NR.]],Tvertņu_meklēšana[],3,FALSE),\"\")","v":"1. rinda, 1. nodalījums"},"Gab.",10,5,5,{"$f":"Krājumu_saraksts[[#This Row],[DAUDZ.]]*Krājumu_saraksts[[#This Row],[CENA]]","v":50},{"$f":"IFERROR(IF(Krājumu_saraksts[[#This Row],[DAUDZ.]]<=Krājumu_saraksts[[#This Row],[PASŪTĪJUMA DAUDZ.]],1,0),0)","v":0}]
[null,"YE98767","4. prece","T9876",{"$f":"IFERROR(VLOOKUP(Krājumu_saraksts[[#This Row],[TVERTNES NR.]],Tvertņu_meklēšana[],3,FALSE),\"\")","v":"3. rinda, 2. nodalījums"},"Kārba (10 gab.)",40,10,15,{"$f":"Krājumu_saraksts[[#This Row],[DAUDZ.]]*Krājumu_saraksts[[#This Row],[CENA]]","v":600},{"$f":"IFERROR(IF(Krājumu_saraksts[[#This Row],[DAUDZ.]]<=Krājumu_saraksts[[#This Row],[PASŪTĪJUMA DAUDZ.]],1,0),0)","v":0}]
[null,"XR23423","5. prece","T098",{"$f":"IFERROR(VLOOKUP(Krājumu_saraksts[[#This Row],[TVERTNES NR.]],Tvertņu_meklēšana[],3,FALSE),\"\")","v":"3. rinda, 1. nodalījums"},"Gab.",12,10,26,{"$f":"Krājumu_saraksts[[#This Row],[DAUDZ.]]*Krājumu_saraksts[[#This Row],[CENA]]","v":312},{"$f":"IFERROR(IF(Krājumu_saraksts[[#This Row],[DAUDZ.]]<=Krājumu_saraksts[[#This Row],[PASŪTĪJUMA DAUDZ.]],1,0),0)","v":0}]
[null,"PW98762","6. prece","T345",{"$f":"IFERROR(VLOOKUP(Krājumu_saraksts[[#This Row],[TVERTNES NR.]],Tvertņu_meklēšana[],3,FALSE),\"\")","v":"2. rinda, 1. nodalījums"},"Gab.",7,10,50,{"$f":"Krājumu_saraksts[[#This Row],[DAUDZ.]]*Krājumu_saraksts[[#This Row],[CENA]]","v":350},{"$f":"IFERROR(IF(Krājumu_saraksts[[#This Row],[DAUDZ.]]<=Krājumu_saraksts[[#This Row],[PASŪTĪJUMA DAUDZ.]],1,0),0)","v":1}]
[null,"BM87684","7. prece","T349",{"$f":"IFERROR(VLOOKUP(Krājumu_saraksts[[#This Row],[TVERTNES NR.]],Tvertņu_meklēšana[],3,FALSE),\"\")","v":"1. rinda, 2. nodalījums"},"Gab.",10,5,10,{"$f":"Krājumu_saraksts[[#This Row],[DAUDZ.]]*Krājumu_saraksts[[#This Row],[CENA]]","v":100},{"$f":"IFERROR(IF(Krājumu_saraksts[[#This Row],[DAUDZ.]]<=Krājumu_saraksts[[#This Row],[PASŪTĪJUMA DAUDZ.]],1,0),0)","v":0}]
[null,"BH67655","8. prece","T5789",{"$f":"IFERROR(VLOOKUP(Krājumu_saraksts[[#This Row],[TVERTNES NR.]],Tvertņu_meklēšana[],3,FALSE),\"\")","v":"1. rinda, 1. nodalījums"},"Gab.",19,10,3,{"$f":"Krājumu_saraksts[[#This Row],[DAUDZ.]]*Krājumu_saraksts[[#This Row],[CENA]]","v":57},{"$f":"IFERROR(IF(Krājumu_saraksts[[#This Row],[DAUDZ.]]<=Krājumu_saraksts[[#This Row],[PASŪTĪJUMA DAUDZ.]],1,0),0)","v":0}]
[null,"WT98768","9. prece","T9875",{"$f":"IFERROR(VLOOKUP(Krājumu_saraksts[[#This Row],[TVERTNES NR.]],Tvertņu_meklēšana[],3,FALSE),\"\")","v":"2. rinda, 2. nodalījums"},"Iepakojums (5 gab.)",20,30,14,{"$f":"Krājumu_saraksts[[#This Row],[DAUDZ.]]*Krājumu_saraksts[[#This Row],[CENA]]","v":280},{"$f":"IFERROR(IF(Krājumu_saraksts[[#This Row],[DAUDZ.]]<=Krājumu_saraksts[[#This Row],[PASŪTĪJUMA DAUDZ.]],1,0),0)","v":1}]
[null,"TS3456","10. prece","T349",{"$f":"IFERROR(VLOOKUP(Krājumu_saraksts[[#This Row],[TVERTNES NR.]],Tvertņu_meklēšana[],3,FALSE),\"\")","v":"1. rinda, 2. nodalījums"},"Gab.",15,8,60,{"$f":"Krājumu_saraksts[[#This Row],[DAUDZ.]]*Krājumu_saraksts[[#This Row],[CENA]]","v":900},{"$f":"IFERROR(IF(Krājumu_saraksts[[#This Row],[DAUDZ.]]<=Krājumu_saraksts[[#This Row],[PASŪTĪJUMA DAUDZ.]],1,0),0)","v":0}]
[null,"WDG123","11. prece","T349",{"$f":"IFERROR(VLOOKUP(Krājumu_saraksts[[#This Row],[TVERTNES NR.]],Tvertņu_meklēšana[],3,FALSE),\"\")","v":"1. rinda, 2. nodalījums"},"Gab.",25,15,8,{"$f":"Krājumu_saraksts[[#This Row],[DAUDZ.]]*Krājumu_saraksts[[#This Row],[CENA]]","v":200},{"$f":"IFERROR(IF(Krājumu_saraksts[[#This Row],[DAUDZ.]]<=Krājumu_saraksts[[#This Row],[PASŪTĪJUMA DAUDZ.]],1,0),0)","v":0}]

{"sheet":"Krājumu izdošanas saraksts","index":1,"n_rows":9,"n_cols":9,"rows_kept":9,"cut":false,"hidden":false,"merged":[]}
[null,"KRĀJUMU IZDOŠANAS SARAKSTS"]
[null,null,"KRĀJUMU SARAKSTS"]
[]
[null,"PASŪTĪJUMA NR.","NV","IZD. DAUDZ.","PIEEJ. DAUDZ.","PRECES APRAKSTS","VIENĪBA","TVERTNES NR.","ATRAŠANĀS VIETA"]
[null,"TP001-1","SP7875",3,{"$f":"IFERROR(VLOOKUP(Krājumu_izdošanas_saraksts[NV],Krājumu_saraksts[],6,FALSE),\"\")","v":20},{"$f":"IFERROR(VLOOKUP(Krājumu_izdošanas_saraksts[NV],Krājumu_saraksts[],2,FALSE),\"\")","v":"1. prece"},{"$f":"IFERROR(VLOOKUP(Krājumu_izdošanas_saraksts[NV],Krājumu_saraksts[],5,FALSE),\"\")","v":"Gab."},{"$f":"IFERROR(VLOOKUP(Krājumu_izdošanas_saraksts[NV],Krājumu_saraksts[],3,FALSE),\"\")","v":"T345"},{"$f":"IFERROR(VLOOKUP(Krājumu_izdošanas_saraksts[NV],Krājumu_saraksts[],4,FALSE),\"\")","v":"2. rinda, 1. nodalījums"}]
[null,"TP001-1","YE98767",1,{"$f":"IFERROR(VLOOKUP(Krājumu_izdošanas_saraksts[NV],Krājumu_saraksts[],6,FALSE),\"\")","v":40},{"$f":"IFERROR(VLOOKUP(Krājumu_izdošanas_saraksts[NV],Krājumu_saraksts[],2,FALSE),\"\")","v":"4. prece"},{"$f":"IFERROR(VLOOKUP(Krājumu_izdošanas_saraksts[NV],Krājumu_saraksts[],5,FALSE),\"\")","v":"Kārba (10 gab.)"},{"$f":"IFERROR(VLOOKUP(Krājumu_izdošanas_saraksts[NV],Krājumu_saraksts[],3,FALSE),\"\")","v":"T9876"},{"$f":"IFERROR(VLOOKUP(Krājumu_izdošanas_saraksts[NV],Krājumu_saraksts[],4,FALSE),\"\")","v":"3. rinda, 2. nodalījums"}]
[null,"TP001-1","BM87684",2,{"$f":"IFERROR(VLOOKUP(Krājumu_izdošanas_saraksts[NV],Krājumu_saraksts[],6,FALSE),\"\")","v":10},{"$f":"IFERROR(VLOOKUP(Krājumu_izdošanas_saraksts[NV],Krājumu_saraksts[],2,FALSE),\"\")","v":"7. prece"},{"$f":"IFERROR(VLOOKUP(Krājumu_izdošanas_saraksts[NV],Krājumu_saraksts[],5,FALSE),\"\")","v":"Gab."},{"$f":"IFERROR(VLOOKUP(Krājumu_izdošanas_saraksts[NV],Krājumu_saraksts[],3,FALSE),\"\")","v":"T349"},{"$f":"IFERROR(VLOOKUP(Krājumu_izdošanas_saraksts[NV],Krājumu_saraksts[],4,FALSE),\"\")","v":"1. rinda, 2. nodalījums"}]
[null,"TP001-1","TS3456",6,{"$f":"IFERROR(VLOOKUP(Krājumu_izdošanas_saraksts[NV],Krājumu_saraksts[],6,FALSE),\"\")","v":15},{"$f":"IFERROR(VLOOKUP(Krājumu_izdošanas_saraksts[NV],Krājumu_saraksts[],2,FALSE),\"\")","v":"10. prece"},{"$f":"IFERROR(VLOOKUP(Krājumu_izdošanas_saraksts[NV],Krājumu_saraksts[],5,FALSE),\"\")","v":"Gab."},{"$f":"IFERROR(VLOOKUP(Krājumu_izdošanas_saraksts[NV],Krājumu_saraksts[],3,FALSE),\"\")","v":"T349"},{"$f":"IFERROR(VLOOKUP(Krājumu_izdošanas_saraksts[NV],Krājumu_saraksts[],4,FALSE),\"\")","v":"1. rinda, 2. nodalījums"}]
[null,"TP001-1","MK676554",3,{"$f":"IFERROR(VLOOKUP(Krājumu_izdošanas_saraksts[NV],Krājumu_saraksts[],6,FALSE),\"\")","v":10},{"$f":"IFERROR(VLOOKUP(Krājumu_izdošanas_saraksts[NV],Krājumu_saraksts[],2,FALSE),\"\")","v":"3. prece"},{"$f":"IFERROR(VLOOKUP(Krājumu_izdošanas_saraksts[NV],Krājumu_saraksts[],5,FALSE),\"\")","v":"Gab."},{"$f":"IFERROR(VLOOKUP(Krājumu_izdošanas_saraksts[NV],Krājumu_saraksts[],3,FALSE),\"\")","v":"T5789"},{"$f":"IFERROR(VLOOKUP(Krājumu_izdošanas_saraksts[NV],Krājumu_saraksts[],4,FALSE),\"\")","v":"1. rinda, 1. nodalījums"}]

{"sheet":"Tvertnes meklēšana","index":2,"n_rows":11,"n_cols":7,"rows_kept":11,"cut":false,"hidden":false,"merged":[]}
[null,"TVERTNES MEKLĒŠANA"]
[null,"KRĀJUMU SARAKSTS"]
[]
[null,"TVERTNES NR.","APRAKSTS","ATRAŠANĀS VIETA","PLATUMS","AUGSTUMS","GARUMS"]
[null,"T345","Liela tvertne","2. rinda, 1. nodalījums",50,10,10]
[null,"T5789","Maza tvertne","1. rinda, 1. nodalījums",25,5,5]
[null,"T9876","Liela tvertne","3. rinda, 2. nodalījums",50,10,10]
[null,"T098","Vidēja tvertne","3. rinda, 1. nodalījums",30,7,10]
[null,"T349","Maza tvertne","1. rinda, 2. nodalījums",25,5,5]
[null,"T5789","Liela tvertne","4. rinda, 5. nodalījums",50,10,10]
[null,"T9875","Liela tvertne","2. rinda, 2. nodalījums",50,10,10]